bitfinex/quotes_BTCUSD_20250127
["timestamp","ask_amount","ask_price","bid_price","bid_amount"]
[1737996641486,0.00125067,99975.0,99947.0,0.150079]
[1737996641689,0.150076,99949.0,99948.0,0.0757]
[1737996641889,0.150096,99936.0,99933.0,0.0757]
[1737996642123,0.00125082,99957.0,99948.0,0.0079983]
[1737996642336,0.150093,99938.0,99933.0,0.0757]
[1737996642537,0.150075,99950.0,99949.0,0.00801067]
[1737996642744,0.200066,99967.0,99937.0,0.150094]
[1737996642745,0.00125076,99966.0,99937.0,0.150094]
[1737996642954,0.02043267,99958.0,99933.0,0.0757]
[1737996643158,0.150085,99943.0,99938.0,0.00801067]
[1737996643363,0.00982821,99974.0,99939.0,0.09734729]
[1737996643568,0.002,99947.0,99946.0,0.150081]
[1737996643773,0.200069,99966.0,99947.0,0.200106]
[1737996643774,0.150062,99959.0,99947.0,0.200106]
[1737996643982,0.009,99966.0,99955.0,0.0767]
[1737996644187,0.009,99966.0,99965.0,0.150052]
[1737996644393,0.01567534,99984.0,99956.0,0.15255922]
[1737996644605,0.01567534,99984.0,99983.0,0.0767]
[1737996645015,0.16569934,99984.0,99983.0,0.0846844]
[1737996645218,0.16569934,99984.0,99983.0,0.00813349]
[1737996645489,0.16569934,99984.0,99983.0,0.00014909]
[1737996645696,0.150024,99984.0,99983.0,0.00014909]
[1737996645903,0.24737129,99984.0,99983.0,0.00014909]
[1737996646105,0.25751434,99984.0,99983.0,0.00014909]
[1737996646951,0.26651434,99984.0,99983.0,0.00014909]
[1737996647361,0.25751434,99984.0,99983.0,0.00014909]
[1737996647750,0.26651434,99984.0,99983.0,0.00014909]
[1737996648164,0.150024,99984.0,99983.0,0.00014909]
[1737996648738,0.42986396,100010.0,99985.0,0.150021]
[1737996649080,0.399974,100010.0,99986.0,0.09734729]
[1737996649408,0.349987,100010.0,99986.0,0.09734729]
[1737996649612,0.549978,100010.0,99987.0,0.03759294]
[1737996649804,0.549979,100010.0,99988.0,0.09734729]
[1737996650028,0.349988,100010.0,99988.0,0.09734729]
[1737996650186,0.002,100010.0,99988.0,0.09734729]
[1737996650395,0.002,100010.0,99993.0,0.15001]
[1737996650601,0.54992,100020.0,100000.0,0.195199]
[1737996650602,0.349948,100020.0,100000.0,0.195199]
[1737996650814,4.22960307,100030.0,100020.0,0.079]
[1737996650952,4.35984734,100030.0,100020.0,0.079]
[1737996651196,4.349899,100030.0,100020.0,0.079]
[1737996651397,4.349899,100030.0,100020.0,0.0869]
[1737996651622,0.149985,100010.0,100000.0,0.0822]
[1737996651828,0.15123501,100010.0,100000.0,0.0822]
[1737996652284,0.150028,99981.0,99980.0,0.0826]
[1737996652529,0.200022,99989.0,99980.0,0.08274909]
[1737996652731,0.150028,99981.0,99980.0,0.09832669]
[1737996652934,0.150028,99981.0,99980.0,0.09005178]
[1737996653520,0.150028,99981.0,99980.0,0.00845178]
[1737996653736,0.24962551,99981.0,99980.0,0.00114909]
[1737996653939,0.24687529,99981.0,99980.0,0.00014909]
[1737996654290,0.25587529,99981.0,99980.0,0.00014909]
[1737996654403,0.24687529,99981.0,99980.0,0.00014909]
[1737996655043,0.149528,99981.0,99980.0,0.00014909]
[1737996656011,0.158528,99981.0,99980.0,0.00014909]
[1737996656209,0.149528,99981.0,99980.0,0.00014909]
[1737996656770,0.158528,99981.0,99980.0,0.00014909]
[1737996656971,0.15077832,99981.0,99980.0,0.00014909]
[1737996657092,0.15977832,99981.0,99980.0,0.00014909]
[1737996657500,0.158528,99981.0,99980.0,0.00014909]
[1737996658404,0.25712561,99981.0,99980.0,0.00014909]
[1737996658603,0.25587529,99981.0,99980.0,0.00014909]
[1737996658836,0.149528,99981.0,99980.0,0.00014909]
[1737996659287,0.15977836,99981.0,99980.0,0.00014909]
[1737996659465,0.149528,99981.0,99980.0,0.00014909]
[1737996659890,0.158528,99981.0,99980.0,0.00014909]
[1737996660141,0.15977834,99981.0,99980.0,0.00014909]
[1737996660342,0.167528,99981.0,99980.0,0.00014909]
[1737996660783,0.149528,99981.0,99980.0,0.00014909]
[1737996660958,0.000298,99984.0,99980.0,0.00014909]
[1737996661360,0.150028,99981.0,99980.0,0.00014909]
[1737996661562,0.150026,99983.0,99980.0,0.00014909]
[1737996661766,0.000298,99984.0,99980.0,0.00014909]
[1737996661979,0.000298,99984.0,99981.0,0.0758]
[1737996662178,0.000298,99984.0,99981.0,0.08143899]
[1737996662382,0.000298,99984.0,99981.0,0.08331865]
[1737996662608,0.150323,99984.0,99981.0,0.08331865]
[1737996662808,0.150323,99984.0,99983.0,0.150025]
[1737996662809,0.000298,99984.0,99983.0,0.150025]
[1737996662923,0.000298,99984.0,99983.0,0.32507673]
[1737996663120,0.000298,99984.0,99983.0,0.33259538]
[1737996663535,0.009298,99984.0,99983.0,0.33259538]
[1737996663733,0.000298,99984.0,99983.0,0.33259538]
[1737996664133,0.000298,99984.0,99983.0,0.34284511]
[1737996665186,0.002298,99984.0,99983.0,0.41804511]
[1737996665360,4.22936184,100030.0,99990.0,0.15]
[1737996665563,4.42931584,100030.0,100010.0,0.399757]
[1737996665778,4.57928284,100030.0,100010.0,0.49710429]
[1737996666003,4.37932484,100030.0,100020.0,0.08080488]
[1737996666209,4.37932484,100030.0,100020.0,0.08267317]
[1737996666445,4.17937084,100030.0,100020.0,0.08080488]
[1737996666783,4.0,100030.0,100020.0,0.40777858]
[1737996666971,4.15010307,100030.0,100020.0,0.40777858]
[1737996667136,4.00914807,100030.0,100020.0,0.40777858]
[1737996667687,1.47388697,99981.0,99980.0,0.17303]
[1737996667893,1.25668081,99981.0,99980.0,0.37044489]
[1737996668029,1.25668081,99981.0,99980.0,0.39731852]
[1737996668235,1.19666881,99981.0,99980.0,0.42428529]
[1737996668508,1.15666081,99981.0,99980.0,0.42428529]
[1737996668647,1.15666081,99981.0,99980.0,0.52163258]
[1737996669057,0.728259,99981.0,99980.0,0.42443438]
[1737996669254,0.71392008,99981.0,99980.0,0.42443438]
[1737996669463,0.71392008,99981.0,99980.0,0.39746761]
[1737996669868,0.71392008,99981.0,99980.0,0.39843242]
[1737996670260,0.28234527,99981.0,99980.0,0.40243242]
[1737996670510,0.28234527,99981.0,99980.0,0.01158905]
[1737996670699,0.43237327,99981.0,99980.0,0.01158905]
[1737996670881,0.46237327,99981.0,99980.0,0.01158905]
[1737996671288,0.43237327,99981.0,99980.0,0.01158905]
[1737996671492,0.43137327,99981.0,99980.0,0.00014909]
[1737996672672,0.43237327,99981.0,99980.0,0.00414909]
[1737996672877,0.45237327,99981.0,99980.0,0.00414909]
[1737996673083,0.45137327,99981.0,99980.0,0.00014909]
[1737996673301,0.44037327,99981.0,99980.0,0.00014909]
[1737996673712,0.28134527,99981.0,99980.0,0.00014909]
[1737996673895,0.29034527,99981.0,99980.0,0.00014909]
[1737996674386,0.29034527,99981.0,99980.0,0.24752638]
[1737996674601,0.29934527,99981.0,99980.0,0.24752638]
[1737996674829,0.29934527,99981.0,99980.0,0.26383476]
[1737996675764,0.28134527,99981.0,99980.0,0.41383476]
[1737996676170,0.28234527,99981.0,99980.0,0.41383476]
[1737996676394,0.28134527,99981.0,99980.0,0.40367217]
[1737996676612,0.28134527,99981.0,99980.0,0.10364217]
[1737996676927,0.28134527,99981.0,99980.0,0.01029488]
[1737996676928,0.43237327,99981.0,99980.0,0.01029488]
[1737996677125,0.46137327,99981.0,99980.0,0.00014909]
[1737996677350,0.43137327,99981.0,99980.0,0.00014909]
[1737996677553,0.43137327,99981.0,99980.0,0.00414909]
[1737996677554,0.28234527,99981.0,99980.0,0.00414909]
[1737996677718,0.28234527,99981.0,99980.0,0.00014909]
[1737996677719,0.43137327,99981.0,99980.0,0.00014909]
[1737996677918,0.28134527,99981.0,99980.0,0.00014909]
[1737996678170,0.43137327,99981.0,99980.0,0.00014909]
[1737996678565,0.44137327,99981.0,99980.0,0.00014909]
[1737996679038,0.61137327,99981.0,99980.0,0.00014909]
[1737996679248,0.150097,99935.0,99929.0,0.0001419]
[1737996680079,0.0761,99947.0,99929.0,0.0001419]
[1737996680352,0.150097,99935.0,99929.0,0.0001419]
[1737996680567,0.3764883,99981.0,99929.0,0.0001419]
[1737996680568,0.150083,99945.0,99929.0,0.0001419]
[1737996680778,0.00014785,99935.0,99934.0,0.003]
[1737996680992,0.00014785,99935.0,99929.0,0.0001419]
[1737996681193,0.150105,99930.0,99929.0,0.0001419]
[1737996681874,0.150102,99932.0,99929.0,0.0001419]
[1737996682080,0.00014785,99935.0,99929.0,0.0001419]
[1737996682645,0.150105,99930.0,99929.0,0.0001419]
[1737996684101,0.00014785,99935.0,99929.0,0.09748919]
[1737996684304,0.009,99930.0,99929.0,0.0001419]
[1737996684519,0.009,99930.0,99929.0,0.24759519]
[1737996684759,0.00014785,99935.0,99931.0,0.173]
[1737996684970,0.00014785,99935.0,99929.0,0.09748919]
[1737996684971,0.00014785,99935.0,99934.0,0.27044629]
[1737996685181,0.00014785,99935.0,99934.0,0.42044629]
[1737996685628,0.28164306,99981.0,99936.0,0.023]
[1737996685838,0.28179187,99981.0,99945.0,0.22311]
[1737996686059,0.28179187,99981.0,99962.0,0.150056]
[1737996686264,0.28179187,99981.0,99940.0,0.15]
[1737996686265,0.28179187,99981.0,99963.0,0.09734729]
[1737996686479,0.28179187,99981.0,99976.0,0.150035]
[1737996686717,0.28179187,99981.0,99963.0,0.09734729]
[1737996686924,0.28179187,99981.0,99980.0,0.15003]
[1737996687136,0.28179187,99981.0,99980.0,0.27037729]
[1737996687355,0.28179187,99981.0,99980.0,0.27657195]
[1737996687356,0.28379187,99981.0,99980.0,0.27657195]
[1737996687569,0.28379187,99981.0,99980.0,0.42657195]
[1737996687768,0.28179187,99981.0,99980.0,0.52665975]
[1737996688221,0.28775879,100030.0,100010.0,0.149972]
[1737996688428,0.28775879,100030.0,100010.0,0.44729729]
[1737996688429,0.00044657,100030.0,100010.0,0.44729729]
[1737996688641,0.18040457,100030.0,100020.0,0.00597072]
[1737996688851,0.16165422,100030.0,100020.0,0.00597072]
[1737996689061,0.24900151,100030.0,100020.0,0.00597072]
[1737996689306,0.24900151,100030.0,99917.0,0.800411]
[1737996689307,0.149986,100010.0,99987.0,0.150019]
[1737996689509,0.349968,100010.0,99990.0,0.15]
[1737996689684,0.349968,100010.0,99991.0,0.09734729]
[1737996690241,0.429974,100010.0,99950.0,0.200098]
[1737996690438,0.200002,99999.0,99987.0,0.001]
[1737996690686,0.150018,99988.0,99987.0,0.001]
[1737996690894,0.150014,99991.0,99972.0,0.023]
[1737996691102,0.00125007,99996.0,99987.0,0.00578554]
[1737996691304,0.20001,99995.0,99973.0,0.09734729]
[1737996691484,0.150016,99989.0,99988.0,0.00578554]
[1737996691665,0.03,99996.0,99964.0,0.08939224]
[1737996691861,0.150016,99989.0,99988.0,0.00578554]
[1737996692063,0.150042,99972.0,99965.0,0.09734729]
[1737996692267,0.02,99987.0,99966.0,0.00578554]
[1737996692474,0.150049,99967.0,99966.0,0.00578554]
[1737996692678,0.15005,99967.0,99964.0,0.00014881]
[1737996692938,0.02,99982.0,99964.0,0.00014881]
[1737996693140,0.150052,99965.0,99964.0,0.00014881]
[1737996693348,0.02,99986.0,99964.0,0.00014881]
[1737996693553,0.001,99988.0,99964.0,0.00014881]
[1737996693554,0.200055,99973.0,99964.0,0.00014881]
[1737996693771,0.200056,99972.0,99964.0,0.00014881]
[1737996693943,0.200055,99973.0,99964.0,0.00014881]
[1737996694147,0.009,99967.0,99964.0,0.00014881]
[1737996694326,0.200055,99973.0,99964.0,0.00014881]
[1737996694527,0.200016,99992.0,99965.0,0.09734729]
[1737996694728,0.01,100000.0,99965.0,0.10245177]
[1737996694958,0.01,100000.0,99966.0,0.023]
[1737996695157,0.229402,99999.0,99969.0,0.173]
[1737996695500,0.0794,99999.0,99975.0,0.023]
[1737996695726,0.0494,100010.0,99980.0,0.023]
[1737996695959,0.149986,100010.0,99994.0,0.150008]
[1737996696206,0.658936,100020.0,99995.0,0.09734729]
[1737996696454,0.838908,100020.0,99996.0,0.150006]
[1737996696691,0.63813577,100020.0,99997.0,0.09734729]
[1737996696903,0.43815977,100020.0,100000.0,0.149996]
[1737996697031,0.43815977,100020.0,100000.0,0.24734329]
[1737996697032,0.65812877,100020.0,100000.0,0.24734329]
[1737996697235,0.149985,100010.0,100000.0,0.09734729]
[1737996697634,0.65827752,100020.0,100000.0,0.10229063]
[1737996697843,0.149985,100010.0,100000.0,0.10229063]
[1737996698448,0.17918977,100010.0,100000.0,0.00494334]
[1737996698655,0.02920477,100010.0,99986.0,0.15002]
[1737996698853,0.57918177,100010.0,99991.0,0.150012]
[1737996699035,0.43830952,100020.0,99993.0,0.200014]
[1737996699251,0.63827952,100020.0,100000.0,0.149991]
[1737996699454,0.63827952,100020.0,100000.0,0.24733829]
[1737996699455,0.002,100010.0,100000.0,0.24733829]
[1737996700017,0.002,100010.0,100000.0,0.09734729]
[1737996700155,0.15,100000.0,99991.0,0.001]
[1737996700351,0.149996,100010.0,99992.0,0.09734729]
[1737996700558,0.63827152,100020.0,100000.0,0.149998]
[1737996700787,0.42908875,100020.0,100000.0,0.45134329]
[1737996700990,0.62906275,100020.0,100000.0,0.10134729]
[1737996701145,0.15012875,100020.0,100000.0,0.45133529]
[1737996701363,0.00014875,100020.0,100010.0,0.42033229]
[1737996702539,0.00014875,100020.0,100010.0,0.24733229]
[1737996702776,0.15011875,100020.0,100010.0,0.09734729]
[1737996702977,0.00014875,100020.0,100010.0,0.09834729]
[1737996703093,0.15011875,100020.0,100010.0,0.09834729]
[1737996703291,0.15932352,100020.0,100010.0,0.001]
[1737996703663,0.55925252,100020.0,100000.0,0.149997]
[1737996703951,0.56125252,100020.0,100000.0,0.44734329]
[1737996704158,0.55204775,100020.0,100000.0,0.44734329]
[1737996704376,0.55204775,100020.0,100000.0,0.24734429]
[1737996704377,0.56125252,100020.0,100000.0,0.24734429]
[1737996704769,0.56125252,100020.0,100000.0,0.44734329]
[1737996705171,0.55925252,100020.0,100000.0,0.44734329]
[1737996705570,0.38828452,100020.0,100010.0,0.001]
[1737996705783,0.149985,100010.0,100000.0,0.09734729]
[1737996706023,0.07914875,100020.0,100010.0,0.149985]
[1737996706254,0.07914875,100020.0,100010.0,0.24733229]
[1737996706255,0.00014875,100020.0,100010.0,0.24733229]
[1737996706461,0.35008175,100020.0,100000.0,0.149998]
[1737996706672,0.00014875,100020.0,100010.0,0.24733229]
[1737996706878,0.00914875,100020.0,100010.0,0.42133229]
[1737996707056,0.00014875,100020.0,100010.0,0.42033229]
[1737996707669,0.15011875,100020.0,100010.0,0.09734729]
[1737996707867,0.15011875,100020.0,100000.0,0.16225361]
[1737996707868,0.15012575,100020.0,100000.0,0.16225361]
[1737996708082,0.149985,100010.0,100000.0,0.1096059]
[1737996708421,0.00014875,100020.0,100010.0,0.15078023]
[1737996708623,0.00029779,100030.0,100020.0,0.32376523]
[1737996708824,0.00029779,100030.0,100020.0,0.42031729]
[1737996709450,0.047196,100070.0,100060.0,0.14991]
[1737996709650,0.17911577,100060.0,100040.0,0.149931]
[1737996709876,0.02920477,100060.0,100020.0,0.03557563]
[1737996710090,0.02920477,100050.0,100040.0,0.14994]
[1737996710296,0.22680482,100070.0,100050.0,0.149925]
[1737996710495,0.15911677,100060.0,100040.0,0.34985]
[1737996710677,0.35899677,100060.0,100040.0,0.44719729]
[1737996710920,0.00920477,100050.0,100040.0,0.14994]
[1737996711722,0.15912977,100050.0,100030.0,0.549799]
[1737996711971,0.30791477,100050.0,100030.0,0.09734729]
[1737996712097,0.65775977,100050.0,100030.0,0.09734729]
[1737996712310,0.65775977,100050.0,100000.0,0.349969]
[1737996712311,0.00920477,100030.0,100000.0,0.349969]
[1737996712509,0.17916077,100030.0,100010.0,0.24732629]
[1737996712727,0.169956,100030.0,100010.0,0.44729729]
[1737996713126,0.17916077,100030.0,100010.0,0.24732629]
[1737996713368,0.38010177,100030.0,100010.0,0.24732629]
[1737996713575,0.58005077,100030.0,100010.0,0.24732629]
[1737996713747,0.021,100030.0,100010.0,0.64728129]
[1737996713949,0.002,100030.0,100020.0,0.14997]
[1737996714150,0.002,100030.0,100020.0,0.24731729]
[1737996714953,0.002,100030.0,100020.0,0.42031729]
[1737996715617,0.002,100030.0,100020.0,0.09734729]
[1737996715837,0.149955,100030.0,100020.0,0.09734729]
[1737996716394,0.62791777,100040.0,100020.0,0.24731429]
[1737996716755,0.149955,100030.0,100020.0,0.09734729]
[1737996717996,0.149955,100030.0,100020.0,0.24731729]
[1737996718217,0.149955,100030.0,100020.0,0.09734729]
[1737996718617,0.40910477,100030.0,100010.0,0.149979]
[1737996718776,0.0689,100040.0,99999.0,0.08910669]
[1737996718777,0.07730477,100010.0,99999.0,0.08910669]
[1737996719159,0.15920477,100000.0,99999.0,0.08870674]
[1737996719337,0.17920477,100000.0,99999.0,0.08870674]
[1737996719779,0.17,100000.0,99999.0,0.0933866]
[1737996719978,0.17920477,100000.0,99999.0,0.0933866]
[1737996720181,0.17920477,100000.0,99999.0,0.08870674]
[1737996720388,0.17,100000.0,99999.0,0.08870674]
[1737996720593,0.009,100000.0,99999.0,0.18605403]
[1737996720801,0.15920477,100000.0,99999.0,0.0933866]
[1737996721209,0.18820477,100000.0,99999.0,0.0933866]
[1737996721325,0.28555206,100000.0,99999.0,0.0933866]
[1737996721526,0.28555206,100000.0,99999.0,0.08870674]
[1737996721746,0.28555206,100000.0,99990.0,0.0001418]
[1737996721747,0.32921777,99991.0,99990.0,0.0001418]
[1737996721959,0.42656506,99991.0,99990.0,0.0001418]
[1737996722152,0.45002877,99984.0,99983.0,8e-07]
[1737996722503,0.54737606,99984.0,99983.0,8e-07]
[1737996722707,0.57037606,99984.0,99983.0,8e-07]
[1737996722831,0.57037606,99984.0,99964.0,0.0001418]
[1737996722832,0.150052,99965.0,99964.0,0.0001418]
[1737996723034,0.24739929,99965.0,99964.0,0.00029061]
[1737996723255,0.26739929,99965.0,99964.0,0.00029061]
[1737996723883,0.27660406,99965.0,99964.0,0.00029061]
[1737996724084,0.16825677,99965.0,99964.0,0.00029061]
[1737996724407,0.43685464,99965.0,99964.0,0.00029061]
[1737996724623,0.43560406,99965.0,99964.0,0.00029061]
[1737996724999,0.43560406,99965.0,99964.0,6.1e-07]
[1737996725202,0.48310406,99965.0,99964.0,6.1e-07]
[1737996725748,0.47410406,99965.0,99964.0,6.1e-07]
[1737996726152,0.31310406,99965.0,99964.0,6.1e-07]
[1737996726366,0.22675677,99965.0,99964.0,6.1e-07]
[1737996726578,0.48999538,99965.0,99964.0,6.1e-07]
[1737996726789,0.150105,99930.0,99929.0,0.0001419]
[1737996727027,0.1805607,99930.0,99929.0,0.0001419]
[1737996727236,0.42790799,99930.0,99929.0,0.0001419]
[1737996727437,0.42665706,99930.0,99929.0,0.0001419]
[1737996727651,0.17936077,99896.0,99860.0,0.0021418]
[1737996727876,0.50220806,99896.0,99860.0,0.0021418]
[1737996728510,0.38486077,99896.0,99865.0,0.150202]
[1737996728716,0.38486077,99896.0,99868.0,0.150198]
[1737996728923,0.38486077,99896.0,99860.0,0.0021418]
[1737996728924,0.225656,99896.0,99869.0,0.20026]
[1737996729142,0.20018,99910.0,99880.0,0.200239]
[1737996729355,0.049,99923.0,99896.0,0.09734729]
[1737996729567,9.899e-05,99910.0,99909.0,0.173136]
[1737996729768,9.899e-05,99910.0,99909.0,0.27048329]
[1737996729974,9.899e-05,99910.0,99909.0,0.42586967]
[1737996730600,9.899e-05,99910.0,99909.0,0.52602847]
[1737996730747,9.899e-05,99910.0,99909.0,0.42586967]
[1737996731354,9.899e-05,99910.0,99909.0,0.25286967]
[1737996731554,9.899e-05,99910.0,99909.0,0.27586967]
[1737996731758,0.00109899,99910.0,99909.0,0.27586967]
[1737996732768,9.899e-05,99910.0,99909.0,0.27586967]
[1737996733002,9.899e-05,99910.0,99909.0,0.42586967]
[1737996733213,0.00109899,99910.0,99909.0,0.42586967]
[1737996733434,9.899e-05,99910.0,99909.0,0.4266649]
[1737996733856,0.00109899,99910.0,99909.0,0.42601147]
[1737996734053,9.899e-05,99910.0,99909.0,0.25301147]
[1737996734469,9.899e-05,99910.0,99909.0,0.40301147]
[1737996734470,0.00109899,99910.0,99909.0,0.40301147]
[1737996734705,0.00109899,99910.0,99909.0,0.42601147]
[1737996734909,9.899e-05,99910.0,99909.0,0.42601147]
[1737996735318,9.899e-05,99910.0,99909.0,0.10287547]
[1737996735525,0.15023399,99910.0,99909.0,0.00552818]
[1737996735728,9.899e-05,99910.0,99909.0,0.10287547]
[1737996735918,9.899e-05,99910.0,99909.0,0.24762509]
[1737996736123,9.899e-05,99910.0,99909.0,0.10199442]
[1737996736523,9.899e-05,99910.0,99909.0,0.10599442]
[1737996736722,9.899e-05,99910.0,99909.0,0.10199442]
[1737996736964,0.15943876,99910.0,99909.0,0.00464713]
[1737996737160,0.15943876,99910.0,99909.0,0.0001418]
[1737996737161,0.18069003,99910.0,99909.0,0.0001418]
[1737996737387,0.42803732,99910.0,99909.0,0.0001418]
[1737996737523,0.42678605,99910.0,99909.0,0.0001418]
[1737996737727,0.42778605,99910.0,99909.0,0.0001418]
[1737996738062,0.42678605,99910.0,99909.0,0.0001418]
[1737996738269,0.43578605,99910.0,99909.0,0.0011418]
[1737996738822,0.42658128,99910.0,99909.0,0.0011418]
[1737996739039,0.33843876,99910.0,99909.0,0.0011418]
[1737996739227,0.31843876,99910.0,99909.0,0.0011418]
[1737996739422,0.15923399,99910.0,99909.0,0.0011418]
[1737996739632,0.15943876,99910.0,99909.0,0.0001418]
[1737996739836,0.17943876,99910.0,99909.0,0.0011418]
[1737996740043,0.18843876,99910.0,99909.0,0.0011418]
[1737996740457,0.19743876,99910.0,99909.0,0.0021418]
[1737996740991,0.15023399,99910.0,99909.0,0.0001418]
[1737996742503,9.899e-05,99910.0,99909.0,0.24762509]
[1737996742708,0.15023399,99910.0,99909.0,0.00489234]
[1737996742908,9.899e-05,99910.0,99909.0,0.00489234]
[1737996743136,0.15023399,99910.0,99909.0,0.0001418]
[1737996743310,0.15023399,99910.0,99909.0,0.0011418]
[1737996743311,0.15923399,99910.0,99909.0,0.0011418]
[1737996743655,0.15023399,99910.0,99909.0,0.0001418]
[1737996743855,0.15123399,99910.0,99909.0,0.0001418]
[1737996744089,0.18043876,99910.0,99909.0,0.0001418]
[1737996744299,0.17943876,99910.0,99909.0,0.0001418]
[1737996744513,0.15823399,99910.0,99909.0,0.0011418]
[1737996744892,0.15023399,99910.0,99909.0,0.0001418]
[1737996745371,0.15023399,99910.0,99909.0,0.0011418]
[1737996745516,0.15823399,99910.0,99909.0,0.0011418]
[1737996747071,0.15823399,99910.0,99909.0,0.0058349]
[1737996747226,0.15823399,99910.0,99909.0,0.0011418]
[1737996747428,0.15823399,99910.0,99909.0,0.0058349]
[1737996747632,0.15823399,99910.0,99909.0,0.0011418]
[1737996748246,0.15823399,99910.0,99909.0,0.00583283]
[1737996748442,0.15823399,99910.0,99909.0,0.0011418]
[1737996749056,0.16743876,99910.0,99909.0,0.0011418]
[1737996749402,0.18743876,99910.0,99909.0,0.0011418]
[1737996750973,0.16743876,99910.0,99909.0,0.0011418]
[1737996751146,0.15823399,99910.0,99909.0,0.0011418]
[1737996751379,0.15023399,99910.0,99909.0,0.0001418]
[1737996751621,0.15923399,99910.0,99909.0,0.0011418]
[1737996751995,9.899e-05,99910.0,99909.0,0.0001418]
[1737996752150,0.00909899,99910.0,99909.0,0.1512778]
[1737996752351,0.00909899,99910.0,99909.0,0.00585022]
[1737996752556,0.00909899,99910.0,99909.0,0.25333351]
[1737996752759,0.00909899,99910.0,99909.0,0.27633351]
[1737996753346,9.899e-05,99910.0,99909.0,0.27533351]
[1737996753754,0.00109899,99910.0,99909.0,0.42533351]
[1737996754001,9.899e-05,99910.0,99909.0,0.42533351]
[1737996754421,0.00109899,99910.0,99909.0,0.42533351]
[1737996754752,9.899e-05,99910.0,99909.0,0.42533351]
[1737996755159,0.00109899,99910.0,99909.0,0.42533351]
[1737996755360,9.899e-05,99910.0,99909.0,0.42533351]
[1737996755893,9.9e-07,99910.0,99909.0,0.42533351]
[1737996756136,0.00920477,99963.0,99928.0,0.300108]
[1737996756344,0.15007,99953.0,99928.0,0.42045529]
[1737996756526,0.150067,99955.0,99928.0,0.42490765]
[1737996756719,0.200085,99958.0,99928.0,0.42490765]
[1737996756947,0.00920477,99950.0,99928.0,0.42490765]
[1737996757182,0.15009,99940.0,99928.0,0.42490765]
[1737996757618,0.15009,99940.0,99928.0,0.43977733]
[1737996757823,0.200125,99938.0,99928.0,0.28966933]
[1737996757978,0.200125,99938.0,99928.0,0.00445236]
[1737996757979,0.15960877,99929.0,99928.0,0.00445236]
[1737996758184,0.000298,99929.0,99910.0,0.20018]
[1737996758392,0.001298,99929.0,99928.0,0.00545145]
[1737996758650,0.001298,99929.0,99928.0,0.24845529]
[1737996758793,0.000298,99929.0,99928.0,0.27490427]
[1737996759001,0.000298,99929.0,99928.0,0.10179627]
[1737996759206,0.150404,99929.0,99928.0,0.00444898]
[1737996759410,0.150111,99926.0,99915.0,0.15]
[1737996759613,0.000298,99929.0,99928.0,0.00446699]
[1737996759851,0.000298,99929.0,99916.0,0.29751429]
[1737996760080,0.150405,99929.0,99928.0,0.00446777]
[1737996760286,0.15960977,99929.0,99928.0,0.004]
[1737996760678,0.17960977,99929.0,99928.0,0.004]
[1737996760881,0.150135,99910.0,99909.0,0.00063711]
[1737996761694,0.150132,99912.0,99909.0,0.00063711]
[1737996761907,0.200176,99912.0,99909.0,0.00063711]
[1737996762112,0.00920477,99914.0,99909.0,0.00063711]
[1737996762260,0.150133,99911.0,99909.0,0.00063711]
[1737996762477,0.00920477,99914.0,99909.0,0.00063711]
[1737996762675,0.150133,99911.0,99910.0,0.00448518]
[1737996762879,0.150135,99910.0,99909.0,0.00063711]
[1737996763089,0.150134,99911.0,99909.0,0.00063711]
[1737996763298,0.000298,99929.0,99911.0,0.023]
[1737996763557,0.00920477,99927.0,99913.0,0.023]
[1737996763732,0.000298,99929.0,99917.0,0.023]
[1737996763934,0.00920477,99914.0,99912.0,0.00466444]
[1737996764074,0.200164,99918.0,99909.0,0.00063711]
[1737996764280,0.150122,99919.0,99913.0,0.09734729]
[1737996764565,0.00920477,99921.0,99914.0,0.200172]
[1737996764769,0.15932377,99921.0,99916.0,0.150125]
[1737996764984,0.00920477,99921.0,99917.0,0.09734729]
[1737996765190,0.005298,99929.0,99924.0,0.150113]
[1737996765419,0.00920477,99927.0,99919.0,0.200161]
[1737996765624,0.00920477,99927.0,99925.0,0.00465251]
[1737996765826,0.00920477,99927.0,99923.0,0.150115]
[1737996766030,0.00920477,99927.0,99926.0,0.00465251]
[1737996766147,0.15931377,99927.0,99920.0,0.09734729]
[1737996766355,0.000298,99929.0,99928.0,0.150108]
[1737996766558,0.000298,99929.0,99928.0,0.27045529]
[1737996766764,0.000298,99929.0,99928.0,0.27503357]
[1737996767697,0.000298,99929.0,99928.0,0.42503357]
[1737996767917,0.000298,99929.0,99928.0,0.42603357]
[1737996768374,0.000298,99929.0,99928.0,0.27603357]
[1737996768567,0.000298,99929.0,99928.0,0.25303357]
[1737996769622,0.000298,99929.0,99928.0,0.25203357]
[1737996769823,0.000298,99929.0,99928.0,0.27503357]
[1737996770004,0.001298,99929.0,99928.0,0.27703357]
[1737996770203,0.001298,99929.0,99928.0,0.42703357]
[1737996770401,0.000298,99929.0,99928.0,0.42503357]
[1737996770716,0.001298,99929.0,99928.0,0.52817457]
[1737996770949,0.00096001,99929.0,99928.0,0.52817457]
[1737996771169,0.00920477,99966.0,99935.0,0.173]
[1737996771344,0.00920477,99966.0,99947.0,0.400212]
[1737996771485,0.00920477,99966.0,99949.0,0.023]
[1737996771691,0.00920477,99966.0,99961.0,0.150057]
[1737996771893,0.00920477,99966.0,99951.0,0.223098]
[1737996771894,0.00920477,99966.0,99962.0,0.24740329]
[1737996772084,0.00920477,99966.0,99963.0,0.150055]
[1737996772286,0.200056,99972.0,99963.0,0.09734729]
[1737996772287,0.00920477,99965.0,99963.0,0.09734729]
[1737996772519,0.00935359,99965.0,99964.0,0.150054]
[1737996772764,0.00935359,99965.0,99963.0,0.09734729]
[1737996772971,0.00935359,99965.0,99951.0,0.200098]
[1737996773170,0.00935359,99965.0,99909.0,0.0001418]
[1737996773171,0.00920477,99952.0,99941.0,0.150087]
[1737996773418,0.15928577,99946.0,99942.0,0.09734729]
[1737996774149,0.00920477,99945.0,99942.0,0.09734729]
[1737996774429,0.15929277,99941.0,99940.0,0.08894306]
[1737996775423,0.17929277,99941.0,99940.0,0.08894306]
[1737996776307,0.00920477,99931.0,99924.0,0.01449987]
[1737996776483,0.00920477,99931.0,99925.0,0.09734729]
[1737996776640,0.15930777,99931.0,99925.0,0.1017284]
[1737996777021,0.00920477,99930.0,99925.0,0.1017284]
[1737996777225,0.150111,99926.0,99925.0,0.09734729]
[1737996777553,0.150108,99928.0,99926.0,0.00438111]
[1737996777705,0.150108,99928.0,99927.0,0.09734729]
[1737996777908,0.150108,99928.0,99925.0,0.00487642]
[1737996777909,0.15931577,99926.0,99925.0,0.00487642]
[1737996778109,0.15931577,99926.0,99925.0,0.00049531]